[Event "Titled Tuesday Blitz April 12 Early 2022"]
[White "Hoang, Thi Bao Tram"]
[Black "Girinath, P.D.S."]
[WhiteFideId "12401102"]
[BlackFideId "5000572"]
[WhiteElo "2125"]
[BlackElo "2369"]
[Result "0-1"]
[Round "10"]
[TimeControl "180+1"]
[Date "2022.04.13"]
[WhiteClock "0:00:54"]
[BlackClock "0:00:14"]

1. d4 {[%clk 0:03:00]}  e6 {[%clk 0:02:59]} 2. Nf3 {[%clk 0:02:59]}  f5 {[%clk 0:02:59]} 3. c4 {[%clk 0:02:56]}  Nf6 {[%clk 0:02:59]} 4. g3 {[%clk 0:02:55]}  Be7 {[%clk 0:02:57]} 5. Bg2 {[%clk 0:02:55]}  O-O {[%clk 0:02:57]} 6. O-O {[%clk 0:02:55]}  d6 {[%clk 0:02:57]} 7. Nc3 {[%clk 0:02:54]}  a5 {[%clk 0:02:58]} 8. Qc2 {[%clk 0:02:53]}  Nc6 {[%clk 0:02:57]} 9. Re1 {[%clk 0:02:52]}  e5 {[%clk 0:02:56]} 10. dxe5 {[%clk 0:02:50]}  dxe5 {[%clk 0:02:57]} 11. Rd1 {[%clk 0:02:46]}  Qe8 {[%clk 0:02:56]} 12. Nb5 {[%clk 0:02:46]}  Bd8 {[%clk 0:02:48]} 13. Bd2 {[%clk 0:02:44]}  Qh5 {[%clk 0:02:35]} 14. h3 {[%clk 0:02:33]}  Kh8 {[%clk 0:01:58]} 15. Bc3 {[%clk 0:02:16]}  e4 {[%clk 0:01:56]} 16. Nh2 {[%clk 0:02:10]}  Qf7 {[%clk 0:01:38]} 17. b3 {[%clk 0:02:03]}  Qg6 {[%clk 0:01:19]} 18. Nf1 {[%clk 0:01:58]}  f4 {[%clk 0:01:03]} 19. g4 {[%clk 0:01:34]}  h5 {[%clk 0:00:44]} 20. f3 {[%clk 0:01:33]}  hxg4 {[%clk 0:00:41]} 21. hxg4 {[%clk 0:01:31]}  Nb4 {[%clk 0:00:33]} 22. Qb2 {[%clk 0:01:27]}  Nxg4 {[%clk 0:00:21]} 23. fxg4 {[%clk 0:01:26]}  Bxg4 {[%clk 0:00:22]} 24. Rd7 {[%clk 0:01:18]}  Bxd7 {[%clk 0:00:19]} 25. Kf2 {[%clk 0:01:06]}  Bxb5 {[%clk 0:00:16]} 26. cxb5 {[%clk 0:01:04]}  c6 {[%clk 0:00:16]} 27. Nh2 {[%clk 0:01:01]}  Bb6+ {[%clk 0:00:15]} 28. Kf1 {[%clk 0:00:59]}  Qg3 {[%clk 0:00:15]} 29. Be5 {[%clk 0:00:54]}  Qf2# {[%clk 0:00:14]} 0-1


[Site "https://www.chess.com"]

[Event "Titled Tuesday Blitz April 12 Early 2022"]
[White "Hua, Lefong"]
[Black "Marcziter, Dmitrii"]
[WhiteFideId "2602253"]
[BlackFideId "13900765"]
[WhiteElo "2582"]
[BlackElo "2155"]
[Result "1-0"]
[Round "10"]
[TimeControl "180+1"]
[Date "2022.04.13"]
[WhiteClock "0:00:25"]
[BlackClock "0:00:35"]

1. d4 {[%clk 0:03:00]}  Nf6 {[%clk 0:02:59]} 2. c4 {[%clk 0:03:00]}  g6 {[%clk 0:02:59]} 3. Nc3 {[%clk 0:03:00]}  Bg7 {[%clk 0:03:00]} 4. e4 {[%clk 0:03:00]}  d6 {[%clk 0:02:58]} 5. f4 {[%clk 0:03:00]}  O-O {[%clk 0:02:58]} 6. Nf3 {[%clk 0:02:59]}  Bg4 {[%clk 0:02:56]} 7. Be2 {[%clk 0:02:59]}  c5 {[%clk 0:02:56]} 8. d5 {[%clk 0:02:59]}  e6 {[%clk 0:02:56]} 9. O-O {[%clk 0:03:00]}  exd5 {[%clk 0:02:55]} 10. cxd5 {[%clk 0:03:01]}  Re8 {[%clk 0:02:55]} 11. h3 {[%clk 0:03:01]}  Bxf3 {[%clk 0:02:55]} 12. Bxf3 {[%clk 0:03:02]}  a6 {[%clk 0:02:54]} 13. Re1 {[%clk 0:02:57]}  Nbd7 {[%clk 0:02:52]} 14. Be3 {[%clk 0:02:56]}  b5 {[%clk 0:02:51]} 15. Bf2 {[%clk 0:02:52]}  b4 {[%clk 0:02:49]} 16. Na4 {[%clk 0:02:51]}  Nb6 {[%clk 0:02:35]} 17. Nxb6 {[%clk 0:02:46]}  Qxb6 {[%clk 0:02:34]} 18. Rc1 {[%clk 0:02:42]}  Nd7 {[%clk 0:02:33]} 19. b3 {[%clk 0:02:22]}  a5 {[%clk 0:02:32]} 20. Bg4 {[%clk 0:02:19]}  Nf6 {[%clk 0:02:30]} 21. e5 {[%clk 0:02:16]}  Nxg4 {[%clk 0:02:29]} 22. Qxg4 {[%clk 0:02:16]}  dxe5 {[%clk 0:02:26]} 23. Bxc5 {[%clk 0:02:14]}  Qf6 {[%clk 0:02:22]} 24. fxe5 {[%clk 0:01:54]}  Rxe5 {[%clk 0:02:22]} 25. Rxe5 {[%clk 0:01:51]}  Qxe5 {[%clk 0:02:21]} 26. Rd1 {[%clk 0:01:52]}  Rd8 {[%clk 0:02:19]} 27. Qf3 {[%clk 0:01:50]}  f5 {[%clk 0:02:15]} 28. Bb6 {[%clk 0:01:44]}  Rb8 {[%clk 0:01:59]} 29. Bf2 {[%clk 0:01:25]}  Bf8 {[%clk 0:01:54]} 30. Bg3 {[%clk 0:01:23]}  Bc5+ {[%clk 0:01:44]} 31. Kh1 {[%clk 0:01:21]}  Qe8 {[%clk 0:01:39]} 32. Bxb8 {[%clk 0:01:21]}  Qxb8 {[%clk 0:01:39]} 33. d6 {[%clk 0:01:21]}  Kg7 {[%clk 0:01:37]} 34. d7 {[%clk 0:01:20]}  Be7 {[%clk 0:01:36]} 35. Qc6 {[%clk 0:01:13]}  Bd8 {[%clk 0:01:31]} 36. Qc5 {[%clk 0:01:03]}  Qg3 {[%clk 0:01:25]} 37. Qd4+ {[%clk 0:01:00]}  Kh6 {[%clk 0:01:21]} 38. Qd6 {[%clk 0:00:58]}  Qg5 {[%clk 0:01:07]} 39. Qd2 {[%clk 0:00:42]}  f4 {[%clk 0:01:06]} 40. Qe2 {[%clk 0:00:42]}  Qf5 {[%clk 0:00:53]} 41. Qf3 {[%clk 0:00:38]}  g5 {[%clk 0:00:48]} 42. Qg4 {[%clk 0:00:29]}  Qe5 {[%clk 0:00:43]} 43. Qf3 {[%clk 0:00:28]}  Kg7 {[%clk 0:00:39]} 44. Qd5 {[%clk 0:00:27]}  Qe2 {[%clk 0:00:36]} 45. Qd4+ {[%clk 0:00:24]}  Kg8 {[%clk 0:00:36]} 46. Qd2 {[%clk 0:00:22]}  Qe7 {[%clk 0:00:35]} 47. Re1 {[%clk 0:00:20]}  Qf6 {[%clk 0:00:34]} 48. Qd5+ {[%clk 0:00:20]}  Kg7 {[%clk 0:00:33]} 49. Qe5 {[%clk 0:00:20]}  Qxe5 {[%clk 0:00:31]} 50. Rxe5 {[%clk 0:00:21]}  Kf6 {[%clk 0:00:31]} 51. Re8 {[%clk 0:00:21]}  Bb6 {[%clk 0:00:31]} 52. d8=Q+ {[%clk 0:00:21]}  Bxd8 {[%clk 0:00:32]} 53. Rxd8 {[%clk 0:00:21]}  h5 {[%clk 0:00:33]} 54. Rd5 {[%clk 0:00:21]}  g4 {[%clk 0:00:34]} 55. hxg4 {[%clk 0:00:22]}  hxg4 {[%clk 0:00:34]} 56. Rxa5 {[%clk 0:00:22]}  f3 {[%clk 0:00:34]} 57. gxf3 {[%clk 0:00:23]}  gxf3 {[%clk 0:00:35]} 58. Kg1 {[%clk 0:00:24]}  f2+ {[%clk 0:00:35]} 59. Kxf2 {[%clk 0:00:25]} 1-0


[Site "https://www.chess.com"]

[Event "Titled Tuesday Blitz April 12 Early 2022"]
[White "Ianov, Viktor"]
[Black "Ovezdurdyyeva, Jemal"]
[WhiteFideId "14102730"]
[BlackFideId "14001888"]
[WhiteElo "2161"]
[BlackElo "1946"]
[Result "0-1"]
[Round "10"]
[TimeControl "180+1"]
[Date "2022.04.13"]
[WhiteClock "0:00:01"]
[BlackClock "0:00:10"]

1. Nf3 {[%clk 0:03:00]}  Nf6 {[%clk 0:02:59]} 2. g3 {[%clk 0:02:59]}  g6 {[%clk 0:02:59]} 3. b3 {[%clk 0:02:58]}  Bg7 {[%clk 0:02:59]} 4. Bb2 {[%clk 0:02:58]}  d5 {[%clk 0:02:58]} 5. c4 {[%clk 0:02:57]}  Be6 {[%clk 0:02:49]} 6. Ng5 {[%clk 0:02:54]}  Bf5 {[%clk 0:02:46]} 7. Bg2 {[%clk 0:02:50]}  h6 {[%clk 0:02:40]} 8. Nf3 {[%clk 0:02:49]}  O-O {[%clk 0:02:38]} 9. cxd5 {[%clk 0:02:44]}  Qxd5 {[%clk 0:02:31]} 10. d3 {[%clk 0:02:40]}  Qa5+ {[%clk 0:02:23]} 11. Bc3 {[%clk 0:02:39]}  Qc5 {[%clk 0:02:21]} 12. O-O {[%clk 0:02:31]}  Nc6 {[%clk 0:02:19]} 13. Bb2 {[%clk 0:02:26]}  Rad8 {[%clk 0:02:11]} 14. Nbd2 {[%clk 0:02:26]}  e5 {[%clk 0:02:07]} 15. Qc1 {[%clk 0:02:19]}  Qe7 {[%clk 0:01:55]} 16. Ba3 {[%clk 0:02:01]}  Nb4 {[%clk 0:01:52]} 17. Qc4 {[%clk 0:01:55]}  a5 {[%clk 0:01:47]} 18. Bb2 {[%clk 0:01:47]}  e4 {[%clk 0:01:23]} 19. dxe4 {[%clk 0:01:36]}  Nxe4 {[%clk 0:01:22]} 20. Bxg7 {[%clk 0:01:33]}  Kxg7 {[%clk 0:01:20]} 21. Nxe4 {[%clk 0:01:27]}  Bxe4 {[%clk 0:01:10]} 22. a3 {[%clk 0:01:25]}  Nc6 {[%clk 0:00:55]} 23. Qc3+ {[%clk 0:01:19]}  Kh7 {[%clk 0:00:55]} 24. Rfc1 {[%clk 0:01:12]}  Bd5 {[%clk 0:00:51]} 25. e3 {[%clk 0:01:06]}  Rd7 {[%clk 0:00:46]} 26. h4 {[%clk 0:01:02]}  Rfd8 {[%clk 0:00:43]} 27. h5 {[%clk 0:00:58]}  Be4 {[%clk 0:00:39]} 28. hxg6+ {[%clk 0:00:54]}  fxg6 {[%clk 0:00:39]} 29. Nh4 {[%clk 0:00:45]}  Rf8 {[%clk 0:00:28]} 30. Rd1 {[%clk 0:00:33]}  Bxg2 {[%clk 0:00:19]} 31. Kxg2 {[%clk 0:00:22]}  Qe4+ {[%clk 0:00:16]} 32. Kg1 {[%clk 0:00:20]}  Rdf7 {[%clk 0:00:15]} 33. Ra2 {[%clk 0:00:14]}  g5 {[%clk 0:00:15]} 34. Ng2 {[%clk 0:00:10]}  Ne5 {[%clk 0:00:15]} 35. Ne1 {[%clk 0:00:08]}  Qg4 {[%clk 0:00:12]} 36. Rd4 {[%clk 0:00:03]}  Qf5 {[%clk 0:00:09]} 37. Qc2 {[%clk 0:00:02]}  Ng4 {[%clk 0:00:08]} 38. Qxf5+ {[%clk 0:00:01]}  Rxf5 {[%clk 0:00:09]} 39. Nd3 {[%clk 0:00:01]}  h5 {[%clk 0:00:10]} 0-1


[Site "https://www.chess.com"]

[Event "Titled Tuesday Blitz April 12 Early 2022"]
[White "Kakulidis, Ellen"]
[Black "Mohammadian, Mohammad"]
[WhiteFideId "1444972"]
[BlackFideId "12566055"]
[WhiteElo "1852"]
[BlackElo "1544"]
[Result "1-0"]
[Round "10"]
[TimeControl "180+1"]
[Date "2022.04.13"]
[WhiteClock "0:00:48"]
[BlackClock "0:01:53"]

1. d4 {[%clk 0:00:57]}  Nf6 {[%clk 0:02:58]} 2. g3 {[%clk 0:00:57]}  d5 {[%clk 0:02:57]} 3. Bg2 {[%clk 0:00:57]}  c6 {[%clk 0:02:56]} 4. Nf3 {[%clk 0:00:57]}  Bf5 {[%clk 0:02:56]} 5. O-O {[%clk 0:00:57]}  Nbd7 {[%clk 0:02:54]} 6. Nbd2 {[%clk 0:00:57]}  g6 {[%clk 0:02:50]} 7. c4 {[%clk 0:00:58]}  Bg7 {[%clk 0:02:49]} 8. b3 {[%clk 0:00:58]}  O-O {[%clk 0:02:47]} 9. Bb2 {[%clk 0:00:58]}  Re8 {[%clk 0:02:47]} 10. Nh4 {[%clk 0:00:58]}  Be6 {[%clk 0:02:42]} 11. f4 {[%clk 0:00:58]}  Nf8 {[%clk 0:02:36]} 12. f5 {[%clk 0:00:58]}  Bd7 {[%clk 0:02:31]} 13. e4 {[%clk 0:00:57]}  dxe4 {[%clk 0:02:30]} 14. Nxe4 {[%clk 0:00:58]}  Nxe4 {[%clk 0:02:30]} 15. Bxe4 {[%clk 0:00:58]}  e5 {[%clk 0:02:26]} 16. d5 {[%clk 0:00:54]}  cxd5 {[%clk 0:02:25]} 17. Bxd5 {[%clk 0:00:54]}  Bc6 {[%clk 0:02:21]} 18. fxg6 {[%clk 0:00:54]}  hxg6 {[%clk 0:02:13]} 19. Bxf7+ {[%clk 0:00:52]}  Kh8 {[%clk 0:02:11]} 20. Nxg6+ {[%clk 0:00:48]}  Nxg6 {[%clk 0:02:08]} 21. Qh5+ {[%clk 0:00:48]}  Bh6 {[%clk 0:01:53]} 22. Qxh6# {[%clk 0:00:48]} 1-0


[Site "https://www.chess.com"]

[Event "Titled Tuesday Blitz April 12 Early 2022"]
[White "Kalavannan, Koby"]
[Black "Avalos Parra, Joao"]
[WhiteFideId "425753"]
[BlackFideId "3402541"]
[WhiteElo "1927"]
[BlackElo "2173"]
[Result "1-0"]
[Round "10"]
[TimeControl "180+1"]
[Date "2022.04.13"]
[WhiteClock "0:01:33"]
[BlackClock "0:02:08"]

1. d4 {[%clk 0:02:54]}  d5 {[%clk 0:02:59]} 2. c4 {[%clk 0:02:54]}  c6 {[%clk 0:02:59]} 3. Nf3 {[%clk 0:02:53]}  Nf6 {[%clk 0:03:00]} 4. Qb3 {[%clk 0:02:53]}  dxc4 {[%clk 0:02:59]} 5. Qxc4 {[%clk 0:02:54]}  g6 {[%clk 0:02:59]} 6. Nc3 {[%clk 0:02:54]}  Bg7 {[%clk 0:02:59]} 7. e4 {[%clk 0:02:54]}  O-O {[%clk 0:03:00]} 8. e5 {[%clk 0:02:49]}  Nd5 {[%clk 0:02:59]} 9. h4 {[%clk 0:02:49]}  h5 {[%clk 0:02:59]} 10. Bd3 {[%clk 0:02:44]}  Be6 {[%clk 0:02:59]} 11. Qa4 {[%clk 0:02:43]}  b5 {[%clk 0:02:50]} 12. Qd1 {[%clk 0:02:42]}  b4 {[%clk 0:02:41]} 13. Ne4 {[%clk 0:02:41]}  Nd7 {[%clk 0:02:40]} 14. Nfg5 {[%clk 0:02:35]}  Bf5 {[%clk 0:02:38]} 15. Ng3 {[%clk 0:02:31]}  Bxd3 {[%clk 0:02:38]} 16. Qxd3 {[%clk 0:02:32]}  c5 {[%clk 0:02:38]} 17. Nxh5 {[%clk 0:02:29]}  cxd4 {[%clk 0:02:35]} 18. Nxg7 {[%clk 0:02:28]}  Kxg7 {[%clk 0:02:35]} 19. Qxd4 {[%clk 0:02:26]}  N7b6 {[%clk 0:02:32]} 20. h5 {[%clk 0:02:15]}  Rh8 {[%clk 0:02:29]} 21. e6+ {[%clk 0:02:11]}  f6 {[%clk 0:02:28]} 22. Nf7 {[%clk 0:02:09]}  Qc8 {[%clk 0:02:25]} 23. Qg4 {[%clk 0:01:56]}  g5 {[%clk 0:02:08]} 24. Qf5 {[%clk 0:01:33]} 1-0


[Site "https://www.chess.com"]

[Event "Titled Tuesday Blitz April 12 Early 2022"]
[White "Kobalia, Mikhail"]
[Black "Madaminov, Mukhiddin"]
[WhiteFideId "4119150"]
[BlackFideId "14210703"]
[WhiteElo "2667"]
[BlackElo "1916"]
[Result "1-0"]
[Round "10"]
[TimeControl "180+1"]
[Date "2022.04.12"]
[WhiteClock "0:01:19"]
[BlackClock "0:00:06"]

1. e4 {[%clk 0:03:00]}  e6 {[%clk 0:02:59]} 2. d3 {[%clk 0:03:00]}  d5 {[%clk 0:03:00]} 3. Nd2 {[%clk 0:03:01]}  Nf6 {[%clk 0:02:59]} 4. Ngf3 {[%clk 0:03:01]}  Nc6 {[%clk 0:02:57]} 5. c3 {[%clk 0:03:01]}  e5 {[%clk 0:02:57]} 6. Be2 {[%clk 0:03:01]}  g6 {[%clk 0:02:53]} 7. O-O {[%clk 0:03:01]}  Bg7 {[%clk 0:02:53]} 8. b4 {[%clk 0:03:00]}  a6 {[%clk 0:02:53]} 9. a4 {[%clk 0:03:00]}  O-O {[%clk 0:02:53]} 10. Bb2 {[%clk 0:02:57]}  Qe7 {[%clk 0:02:37]} 11. b5 {[%clk 0:02:54]}  Na7 {[%clk 0:02:36]} 12. Ba3 {[%clk 0:02:52]}  Qe6 {[%clk 0:02:32]} 13. Bxf8 {[%clk 0:02:52]}  Bxf8 {[%clk 0:02:33]} 14. Qb3 {[%clk 0:02:45]}  a5 {[%clk 0:02:28]} 15. Rfe1 {[%clk 0:02:41]}  Bd7 {[%clk 0:02:22]} 16. d4 {[%clk 0:02:40]}  exd4 {[%clk 0:01:50]} 17. Nxd4 {[%clk 0:02:37]}  Qd6 {[%clk 0:01:43]} 18. Bf3 {[%clk 0:02:35]}  Qf4 {[%clk 0:01:32]} 19. e5 {[%clk 0:02:24]}  Ng4 {[%clk 0:01:17]} 20. Bxg4 {[%clk 0:02:23]}  Bxg4 {[%clk 0:01:18]} 21. Nf1 {[%clk 0:02:23]}  Bc5 {[%clk 0:00:45]} 22. Qxd5 {[%clk 0:02:19]}  Bb6 {[%clk 0:00:46]} 23. g3 {[%clk 0:02:11]}  Qg5 {[%clk 0:00:42]} 24. h4 {[%clk 0:02:10]}  Qe7 {[%clk 0:00:38]} 25. e6 {[%clk 0:02:08]}  f6 {[%clk 0:00:29]} 26. Ne3 {[%clk 0:01:56]}  Rd8 {[%clk 0:00:23]} 27. Qxb7 {[%clk 0:01:48]}  Bh5 {[%clk 0:00:15]} 28. Nd5 {[%clk 0:01:47]}  Qd6 {[%clk 0:00:09]} 29. Nxf6+ {[%clk 0:01:46]}  Kg7 {[%clk 0:00:05]} 30. e7 {[%clk 0:01:46]}  Kxf6 {[%clk 0:00:03]} 31. exd8=Q+ {[%clk 0:01:46]}  Qxd8 {[%clk 0:00:03]} 32. Qe4 {[%clk 0:01:39]}  Kf7 {[%clk 0:00:03]} 33. g4 {[%clk 0:01:37]}  Qxh4 {[%clk 0:00:03]} 34. gxh5 {[%clk 0:01:36]}  Qg5+ {[%clk 0:00:03]} 35. Kf1 {[%clk 0:01:34]}  Qxh5 {[%clk 0:00:02]} 36. Qe8+ {[%clk 0:01:27]}  Kg7 {[%clk 0:00:02]} 37. Re7+ {[%clk 0:01:26]}  Kh6 {[%clk 0:00:03]} 38. Qf8+ {[%clk 0:01:26]}  Kg5 {[%clk 0:00:03]} 39. Re5+ {[%clk 0:01:26]}  Kg4 {[%clk 0:00:03]} 40. Rxh5 {[%clk 0:01:26]}  Kxh5 {[%clk 0:00:03]} 41. Qf7 {[%clk 0:01:23]}  Bxd4 {[%clk 0:00:02]} 42. cxd4 {[%clk 0:01:23]}  Nc8 {[%clk 0:00:03]} 43. Qxh7+ {[%clk 0:01:21]}  Kg5 {[%clk 0:00:04]} 44. Qxc7 {[%clk 0:01:20]}  Nd6 {[%clk 0:00:04]} 45. Qxd6 {[%clk 0:01:20]}  Kf5 {[%clk 0:00:05]} 46. Qe5+ {[%clk 0:01:20]}  Kg4 {[%clk 0:00:05]} 47. Ke2 {[%clk 0:01:19]}  Kh3 {[%clk 0:00:05]} 48. Rh1+ {[%clk 0:01:19]}  Kg2 {[%clk 0:00:06]} 1-0


[Site "https://www.chess.com"]

[Event "Titled Tuesday Blitz April 12 Early 2022"]
[White "Kostiukov, Alexandr"]
[Black "Janaszak, Dawid"]
[WhiteFideId "14108100"]
[BlackFideId "1119206"]
[WhiteElo "2202"]
[BlackElo "2199"]
[Result "1-0"]
[Round "10"]
[TimeControl "180+1"]
[Date "2022.04.13"]
[WhiteClock "0:00:19"]
[BlackClock "0:00:08"]

1. g3 {[%clk 0:03:00]}  h5 {[%clk 0:02:59]} 2. Nf3 {[%clk 0:03:00]}  Nc6 {[%clk 0:02:58]} 3. Bg2 {[%clk 0:02:55]}  e5 {[%clk 0:02:58]} 4. e4 {[%clk 0:02:47]}  Bc5 {[%clk 0:02:54]} 5. O-O {[%clk 0:02:43]}  d6 {[%clk 0:02:52]} 6. h3 {[%clk 0:02:43]}  Be6 {[%clk 0:02:46]} 7. c3 {[%clk 0:02:39]}  Bb6 {[%clk 0:02:43]} 8. d4 {[%clk 0:02:39]}  Bc4 {[%clk 0:02:36]} 9. Re1 {[%clk 0:02:38]}  Ba6 {[%clk 0:02:26]} 10. Be3 {[%clk 0:02:31]}  Nf6 {[%clk 0:02:20]} 11. Nbd2 {[%clk 0:02:27]}  Qe7 {[%clk 0:02:21]} 12. d5 {[%clk 0:02:05]}  Nb8 {[%clk 0:02:17]} 13. c4 {[%clk 0:02:02]}  Bxe3 {[%clk 0:02:15]} 14. Rxe3 {[%clk 0:02:02]}  Nbd7 {[%clk 0:02:13]} 15. b4 {[%clk 0:01:55]}  b6 {[%clk 0:02:13]} 16. a4 {[%clk 0:01:53]}  O-O {[%clk 0:02:08]} 17. a5 {[%clk 0:01:53]}  b5 {[%clk 0:02:05]} 18. Bf1 {[%clk 0:01:48]}  bxc4 {[%clk 0:02:05]} 19. Bxc4 {[%clk 0:01:44]}  Bxc4 {[%clk 0:02:05]} 20. Nxc4 {[%clk 0:01:45]}  Rab8 {[%clk 0:02:06]} 21. Rb1 {[%clk 0:01:42]}  g6 {[%clk 0:02:03]} 22. Nfd2 {[%clk 0:01:36]}  Nh7 {[%clk 0:02:01]} 23. Rc3 {[%clk 0:01:23]}  h4 {[%clk 0:02:00]} 24. g4 {[%clk 0:01:22]}  Ng5 {[%clk 0:01:55]} 25. Kg2 {[%clk 0:01:19]}  Nf6 {[%clk 0:01:55]} 26. f3 {[%clk 0:01:17]}  Ne8 {[%clk 0:01:51]} 27. Ne3 {[%clk 0:01:17]}  Kg7 {[%clk 0:01:43]} 28. Qa4 {[%clk 0:01:16]}  Kh7 {[%clk 0:01:33]} 29. Rbc1 {[%clk 0:01:14]}  Rb7 {[%clk 0:01:27]} 30. b5 {[%clk 0:01:14]}  Qf6 {[%clk 0:01:21]} 31. Qc4 {[%clk 0:00:56]}  Qf4 {[%clk 0:01:20]} 32. Nef1 {[%clk 0:00:56]}  Ng7 {[%clk 0:01:12]} 33. Qc6 {[%clk 0:00:45]}  Rfb8 {[%clk 0:01:10]} 34. Rb3 {[%clk 0:00:45]}  f5 {[%clk 0:01:00]} 35. exf5 {[%clk 0:00:40]}  gxf5 {[%clk 0:00:59]} 36. Rc4 {[%clk 0:00:37]}  e4 {[%clk 0:00:55]} 37. gxf5 {[%clk 0:00:31]}  Nxf5 {[%clk 0:00:49]} 38. Nxe4 {[%clk 0:00:29]}  Nxe4 {[%clk 0:00:48]} 39. Rxe4 {[%clk 0:00:28]}  Rg8+ {[%clk 0:00:48]} 40. Kf2 {[%clk 0:00:28]}  Qg5 {[%clk 0:00:41]} 41. Rg4 {[%clk 0:00:26]}  Qf6 {[%clk 0:00:28]} 42. Qxb7 {[%clk 0:00:26]}  Rxg4 {[%clk 0:00:23]} 43. hxg4 {[%clk 0:00:24]}  Qd4+ {[%clk 0:00:21]} 44. Kg2 {[%clk 0:00:24]}  h3+ {[%clk 0:00:19]} 45. Kxh3 {[%clk 0:00:24]}  Qd1 {[%clk 0:00:13]} 46. Qxc7+ {[%clk 0:00:23]}  Ng7 {[%clk 0:00:14]} 47. Qc4 {[%clk 0:00:19]}  Qe1 {[%clk 0:00:08]} 48. Qe4+ {[%clk 0:00:19]} 1-0


[Site "https://www.chess.com"]

[Event "Titled Tuesday Blitz April 12 Early 2022"]
[White "Kouskoutis, Georgios-Alexandros"]
[Black "Korchmar, Vasiliy"]
[WhiteFideId "4234049"]
[BlackFideId "24131750"]
[WhiteElo "2130"]
[BlackElo "2370"]
[Result "0-1"]
[Round "10"]
[TimeControl "180+1"]
[Date "2022.04.12"]
[WhiteClock "0:00:02"]
[BlackClock "0:00:28"]

1. c4 {[%clk 0:03:00]}  c6 {[%clk 0:02:59]} 2. g3 {[%clk 0:03:00]}  d5 {[%clk 0:02:59]} 3. Bg2 {[%clk 0:03:00]}  g6 {[%clk 0:03:00]} 4. cxd5 {[%clk 0:02:35]}  cxd5 {[%clk 0:03:00]} 5. Nf3 {[%clk 0:02:35]}  Bg7 {[%clk 0:03:00]} 6. d4 {[%clk 0:02:35]}  Nf6 {[%clk 0:02:58]} 7. O-O {[%clk 0:02:32]}  O-O {[%clk 0:02:59]} 8. Nc3 {[%clk 0:02:32]}  Ne4 {[%clk 0:02:58]} 9. e3 {[%clk 0:02:19]}  Nxc3 {[%clk 0:02:53]} 10. bxc3 {[%clk 0:02:20]}  Nc6 {[%clk 0:02:54]} 11. Nd2 {[%clk 0:02:04]}  Na5 {[%clk 0:02:36]} 12. a4 {[%clk 0:01:52]}  b6 {[%clk 0:02:35]} 13. c4 {[%clk 0:01:37]}  Bb7 {[%clk 0:02:29]} 14. Ba3 {[%clk 0:01:36]}  Re8 {[%clk 0:02:19]} 15. Bb4 {[%clk 0:01:16]}  dxc4 {[%clk 0:02:13]} 16. Bxa5 {[%clk 0:01:15]}  Bxg2 {[%clk 0:02:11]} 17. Kxg2 {[%clk 0:01:15]}  bxa5 {[%clk 0:02:09]} 18. Qf3 {[%clk 0:01:06]}  Rc8 {[%clk 0:02:05]} 19. Rac1 {[%clk 0:01:02]}  c3 {[%clk 0:02:00]} 20. Ne4 {[%clk 0:01:00]}  e5 {[%clk 0:01:53]} 21. Nxc3 {[%clk 0:00:32]}  exd4 {[%clk 0:01:52]} 22. exd4 {[%clk 0:00:33]}  Qxd4 {[%clk 0:01:52]} 23. Nb5 {[%clk 0:00:32]}  Qb6 {[%clk 0:01:41]} 24. Rxc8 {[%clk 0:00:19]}  Rxc8 {[%clk 0:01:42]} 25. Rd1 {[%clk 0:00:20]}  a6 {[%clk 0:01:40]} 26. Rd6 {[%clk 0:00:14]}  Qc5 {[%clk 0:01:15]} 27. Rxa6 {[%clk 0:00:14]}  Qb4 {[%clk 0:01:16]} 28. Ra8 {[%clk 0:00:11]}  Rxa8 {[%clk 0:01:12]} 29. Qxa8+ {[%clk 0:00:12]}  Bf8 {[%clk 0:01:13]} 30. Nc7 {[%clk 0:00:05]}  Qxa4 {[%clk 0:01:11]} 31. Nd5 {[%clk 0:00:04]}  Qa3 {[%clk 0:00:38]} 32. Qb7 {[%clk 0:00:04]}  Qd6 {[%clk 0:00:31]} 33. Qa8 {[%clk 0:00:03]}  a4 {[%clk 0:00:29]} 34. Nf4 {[%clk 0:00:01]}  a3 {[%clk 0:00:28]} 35. h4 {[%clk 0:00:02]}  h5 {[%clk 0:00:28]} 0-1


[Site "https://www.chess.com"]